Cogmind - Beta 15 @@@ ROGUE MODE // 2025.07.22 @ 14:55:53 Player: Tuja Result: Destroyed by W5-XZP(R) with Subdweller Laser Performance ------------- Evolutions (0) 0 Regions Visited (3) 600 Robots Destroyed (17) 85 Value Destroyed (450) 450 Prototype IDs (1) 20 Alien Tech Used (0) 0 Bonus (0) 0 TOTAL SCORE: 1155 Bonus ------- None Cogmind --------- Core Integrity 0/250 Matter 281/300 Energy 100/100 System Corruption 0% Temperature Cool (6) Movement Rolling (110) Location -10/Subcaves Parts ------- > --- POWER (1) -------- (None) > --- PROPULSION (2) --- Subdweller Monowheel Subdweller Monowheel > --- UTILITY (2) ------ Large Storage Unit Subdweller Optics > --- WEAPON (2) ------- Light Assault Rifle Light Assault Rifle > --- INVENTORY (15) --- Light Treads Makeshift Leg Wheel Compact Wheel Thief Drone Bay (3/3) Particle Gun Subdweller Beam Cannon Light Assault Rifle Mining Laser Peak State ------------ > --- POWER ------------ Ion Engine > --- PROPULSION ------- Makeshift Leg Makeshift Leg > --- UTILITY ---------- Large Storage Unit Subdweller Optics > --- WEAPON ----------- Light Assault Rifle Light Assault Rifle > --- INVENTORY -------- Light Treads Wheel Compact Wheel Subdweller Monowheel Subdweller Monowheel Thief Drone Bay EM Pulse Gun Particle Gun Light Assault Rifle Light Assault Rifle Mining Laser [Rating: 16] Favorites ----------- Power Ion Engine Engine Ion Engine Propulsion Light Treads Treads Light Treads Leg Makeshift Leg Wheel Subdweller Monowheel Utility Large Storage Unit Device Subdweller Optics Storage Large Storage Unit Weapon Light Assault Rifle Energy Gun EM Pulse Gun Ballistic Gun Light Assault Rifle Build | -11 -10 -10 -10 ------- Run | Yrd Mat Min Sub Slots Evolved . | . . . . Power . | . . . . Propulsion . | . . . . Utility . | . . . . Weapon . | . . . . Parts Attached 19 | 6 2 3 8 Power 2 | 1 . . 1 Engine 2 | 1 . . 1 Core . | . . . . Reactor . | . . . . Propulsion 7 | 2 . 1 4 Treads 3 | 2 . 1 . Leg 2 | . . . 2 Wheel 2 | . . . 2 Hover . | . . . . Flight . | . . . . Utility 4 | 1 1 1 1 Device 2 | . . 1 1 Storage 2 | 1 1 . . Processor . | . . . . Hackware . | . . . . Protection . | . . . . Artifact . | . . . . Weapon 6 | 2 1 1 2 Energy Gun 2 | 1 . . 1 Energy Cannon . | . . . . Ballistic Gun 4 | 1 1 1 1 Ballistic Cannon . | . . . . Launcher . | . . . . Special Weapon . | . . . . Impact Weapon . | . . . . Slashing Weapon . | . . . . Piercing Weapon . | . . . . Special Melee Weapon . | . . . . Unidentified Prototypes 1 | . . 1 . Parts Lost 9 | . 1 3 5 Power 2 | . . 1 1 Propulsion 3 | . . 1 2 Utility . | . . . . Weapon 4 | . 1 1 2 Highest Loss Streak 2 | . 1 2 2 To Critical Strikes . | . . . . Average Backups 8 | 2 7 8 9 Power . | . 1 1 . Propulsion 2 | 1 2 2 3 Utility . | . . . . Weapon 4 | . 3 5 4 Tool/Special . | . . . . Unused Backups 7 | . 1 . 6 Power . | . . . . Propulsion 2 | . . . 2 Utility 1 | . 1 . . Weapon 4 | . . . 4 Tool/Special . | . . . . Average Slot Usage (%) 84 | . 84 84 84 Engine 10 | . 14 12 3 Treads 23 | . 28 27 10 Leg 1 | . . . 6 Wheel 1 | . . . 6 Device 4 | . . 1 14 Storage 14 | . 14 14 14 Energy Gun 1 | . 10 . . Ballistic Gun 26 | . 16 27 27 Peak Build Rating 16 | 6 7 12 16 Average Rating 7 | 4 5 6 11 On Entrance 6 | . 6 6 12 Naked Turns . | . . . . Heaviest Build 29 | 14 29 28 29 Greatest Support 40 | 40 40 40 40 Greatest Overweight (x) 1 | . . . 1 Average Overweight (x) . | . . . . Largest Inventory Capacity 15 | 8 15 15 15 Average Capacity 14 | 7 14 15 15 Most Carried 12 | 5 10 10 12 Average Carried 8 | 2 7 8 9 Final Capacity 15 | 8 15 15 15 Final Carried 9 | 4 9 8 9 Class Distribution -------------------- 100% | Mutant Dominant Class ---------------- Mutant | -10/Materials Mutant | -10/Mines Mutant | -10/Subcaves Resources | -11 -10 -10 -10 ----------- Run | Yrd Mat Min Sub Matter Collected 527 | 241 101 79 106 Remotely . | . . . . Salvage Created 589 | . 328 133 128 Parts 41 | . 19 9 13 Haulers Intercepted . | . . . . Recyclers Shooed . | . . . . Parts Field Recycled . | . . . . Retrieved Matter . | . . . . Parts Self-Destructed . | . . . . Prevented . | . . . . Kills | -11 -10 -10 -10 ------- Run | Yrd Mat Min Sub Combat Hostiles Destroyed 16 | . 8 5 3 Guns 15 | . 7 5 3 AOE 1 | . 1 . . Classes Destroyed 4 | . 3 . 1 Recycler 1 | . 1 . . Swarmer 6 | . 3 3 . Grunt 7 | . 5 2 . Subdweller 3 | . . . 3 Best Kill Streak 6 | . 6 3 1 Combat Bots Only 3 | . 3 3 1 Max Kills in Single Turn 1 | . 1 1 1 Gunslinging . | . . . . Exploded 1 | . 1 . . Melee . | . . . . Uniques/NPCs Destroyed . | . . . . Combat | -11 -10 -10 -10 -------- Run | Yrd Mat Min Sub Hostile Shots Fired 121 | . 37 52 32 Missed 33 | . 9 15 9 Hits 88 | . 28 37 23 Projectile 88 | . 28 37 23 Critical Strikes 1 | . . . 1 Damage Taken 1364 | . 258 427 679 Core 255 | . 28 75 152 Absorbed by Shields . | . . . . Core Remaining (%) 100 | 100 . . . Volleys Fired 66 | . 21 23 22 Largest 2 | . 2 2 2 Hottest 60 | . 60 40 60 Shots Fired 129 | . 42 43 44 Gun 129 | . 42 43 44 Cannon . | . . . . Launcher . | . . . . Special . | . . . . Kinetic 108 | . 25 43 40 Thermal . | . . . . Explosive . | . . . . Electromagnetic 21 | . 17 . 4 Robot Hit Streak 18 | . 5 5 18 Robot Miss Streak 5 | . 4 5 1 Penetration Max . | . . . . Secondary Targets 1 | . 1 . . Max Gunslinging Chain 1 | . 1 . . Shots Hit Robots 82 | . 23 23 36 Core Hits 36 | . 14 10 12 Critical Kills . | . . . . Critical Parts Destroyed . | . . . . Critical Strikes 3 | . . . 3 Destroy 2 | . . . 2 Corrupt 1 | . . . 1 Melee Attacks . | . . . . Impact . | . . . . Slashing . | . . . . Piercing . | . . . . Sneak Attacks . | . . . . Combat Hostiles . | . . . . Follow-up Attacks . | . . . . Damage Inflicted 864 | . 320 253 291 Guns 821 | . 277 253 291 Cannons . | . . . . Explosions 43 | . 43 . . Melee . | . . . . Ramming . | . . . . Kinetic 643 | . 144 253 246 Thermal 43 | . 43 . . Explosive . | . . . . Electromagnetic 178 | . 133 . 45 Impact . | . . . . Slashing . | . . . . Piercing . | . . . . Highest Corruption . | . . . . Average Corruption . | . . . . Corruption Purged . | . . . . Corruption Blocked . | . . . . Overload Shots . | . . . . Overflow Damage . | . . . . Projectiles . | . . . . Explosions . | . . . . Melee . | . . . . Knockbacks . | . . . . Impact . | . . . . Kinetic . | . . . . Secondary . | . . . . Self-Inflicted Damage . | . . . . Shots . | . . . . Rammed . | . . . . Targets Rammed . | . . . . Kicked . | . . . . Crushed . | . . . . Highest Temperature 281 | . 42 30 281 Average Temperature 47 | . 20 9 173 Received Heat Transfer 667 | . 72 207 388 Siege Activations . | . . . . Martial Activations . | . . . . Shielding Activations . | . . . . Robots Disrupted . | . . . . Combat Hostiles . | . . . . Robots Corrupted . | . . . . Combat Hostiles . | . . . . Parts Fried . | . . . . Impact Corruptions . | . . . . Robots Melted . | . . . . Combat Hostiles . | . . . . Parts Melted . | . . . . Heat Transferred 50 | . 50 . . Parts Sabotaged . | . . . . Parts Stolen . | . . . . Parts Stripped . | . . . . Power Chain Reactions 1 | . 1 . . Alert | -11 -10 -10 -10 ------- Run | Yrd Mat Min Sub Maximum Alert Level . | . . . . Low Security (%) 100 | 100 100 100 . Level 1 . | . . . . Level 2 . | . . . . Level 3 . | . . . . Level 4 . | . . . . Level 5 . | . . . . High Security . | . . . . Max Security . | . . . . Peak Influence 135 | . 135 63 . Initial 44 | . . 44 . Average 15 | . 48 9 . Influence Increases 348 | . 213 135 . Destroy 0b10 Robot/C 260 | . 160 100 . Destroy 0b10 Robot/NC 5 | . 5 . . Destroy Leader 50 | . 30 20 . Successful Hack 8 | . 8 . . Destroy Structure 10 | . 10 . . Lose Combat Pursuer 15 | . . 15 . Influence Decreases 348 | . 98 221 29 Entered New Map 87 | . . 71 16 Time Decay 221 | . 88 120 13 Lost Part 40 | . 10 30 . Squads Dispatched 2 | . 2 . . Investigation 2 | . 2 . . Extermination . | . . . . Reinforcement . | . . . . Assault . | . . . . Garrison . | . . . . Intercept . | . . . . Searches Triggered . | . . . . Construction Impeded . | . . . . Haulers Reinforced . | . . . . Active Scanning Responses . | . . . . Cargo Convoy Interrupts . | . . . . Stealth | -11 -10 -10 -10 --------- Run | Yrd Mat Min Sub Distress Signals . | . . . . Communications Jammed . | . . . . Distress Signals . | . . . . Times Spotted 22 | . 11 6 5 Peak Tracking Total 3 | . 3 3 2 Tactical Retreats 2 | . . 1 1 Traps | -11 -10 -10 -10 ------- Run | Yrd Mat Min Sub Traps Triggered 5 | . 2 . 3 Indirectly . | . . . . Trap Hack Attempts . | . . . . Triggered . | . . . . Disarmed . | . . . . Reprogrammed . | . . . . Reused . | . . . . Traps Extracted . | . . . . Installed . | . . . . Triggered . | . . . . Machines | -11 -10 -10 -10 ---------- Run | Yrd Mat Min Sub Machines Disabled . | . . . . Max in Single Turn . | . . . . Machines Repaired . | . . . . Machines Dismantled . | . . . . Machines Sabotaged . | . . . . Overloaded Fab Kills . | . . . . Hacking | -11 -10 -10 -10 --------- Run | Yrd Mat Min Sub Machines Accessed 2 | . 1 1 . Terminals 1 | . 1 . . Fabricators . | . . . . Repair Stations . | . . . . Recycling Units . | . . . . Scanalyzers . | . . . . Garrison Access . | . . . . Total Hacks 8 | . 7 1 . Successful 2 | . 1 1 . Failed 6 | . 6 . . Catastrophic 1 | . 1 . . Database Lockouts . | . . . . Manual 7 | . 7 . . Terminals 7 | . 7 . . Fabricators . | . . . . Repair Stations . | . . . . Recycling Units . | . . . . Scanalyzers . | . . . . Garrison Access . | . . . . Terminal Hacks 2 | . 1 1 . Open Door 1 | . . 1 . Branch Access Points 1 | . 1 . . Fabricator Hacks . | . . . . Repair Station Hacks . | . . . . Recycling Unit Hacks . | . . . . Scanalyzer . | . . . . Garrison Access Hacks . | . . . . Unauthorized Hacks . | . . . . Terminals . | . . . . Fabricators . | . . . . Repair Stations . | . . . . Recycling Units . | . . . . Scanalyzers . | . . . . Garrison Access . | . . . . Data Cores Recovered . | . . . . Used . | . . . . Hacking Detections 1 | . 1 . . Full Trace Events . | . . . . Feedback Events . | . . . . Feedback Blocked . | . . . . Robot Schematics Acquired . | . . . . Robots Built . | . . . . Authchips . | . . . . Time . | . . . . Total Robot Build Rating . | . . . . Part Schematics Acquired . | . . . . Parts Built . | . . . . Authchips . | . . . . Time . | . . . . Total Part Build Rating . | . . . . Parts Repaired . | . . . . Time . | . . . . Parts Recycled . | . . . . Recycled Matter . | . . . . Retrieved Matter . | . . . . Retrieved Components . | . . . . Parts Scanalyzed . | . . . . Part Schematics Acquired . | . . . . Parts Damaged . | . . . . Bothacking | -11 -10 -10 -10 ------------ Run | Yrd Mat Min Sub Used RIF Installer . | . . . . Robots Hacked . | . . . . Non-combat . | . . . . Combat . | . . . . Robot Hacks Applied . | . . . . Relay Couplers Released . | . . . . Fabnet Peak Effective % . | . . . . Robots Rewired . | . . . . Allies Hacked . | . . . . Hacks Repelled . | . . . . Allies | -11 -10 -10 -10 -------- Run | Yrd Mat Min Sub Total Allies . | . . . . Largest Group . | . . . . Highest-Rated Group . | . . . . Highest-Rated Ally . | . . . . Total Orders . | . . . . Ally Attacks . | . . . . Total Damage . | . . . . Kills . | . . . . Allies Corrupted . | . . . . Allies Melted . | . . . . Intel | -11 -10 -10 -10 ------- Run | Yrd Mat Min Sub Active Infowar (turns) 366 | . . . 366 Optics 366 | . . . 366 Robot Analysis Total . | . . . . Derelict Logs Recovered 1 | . . . 1 Drone Launches . | . . . . Drone Recoveries . | . . . . Exploration | -11 -10 -10 -10 ------------- Run | Yrd Mat Min Sub Turns Passed 2191 | 71 299 1326 495 Spaces Moved 667 | 49 137 228 253 Core 20 | 20 . . . Treads 501 | 29 137 228 107 Legs 52 | . . . 52 Wheels 94 | . . . 94 Hover . | . . . . Flight . | . . . . Fastest Speed 50 | 50 160 160 110 Average Speed 155 | 115 160 160 156 Slowest Speed 240 | 160 160 160 240 Overloaded Moves . | . . . . Propulsion Burnouts . | . . . . Robots Hopped . | . . . . Potential Cave-ins . | . . . . Cave-ins Triggered . | . . . . Exploration Rate (%) 25 | 5 26 56 16 Regions Visited 3 Branch Regions 2 Pre-discovered Areas 1 | . . . 1 Known Exits Taken 1 | . 1 . . Unknown Exits Taken 2 | 1 . 1 . Scrap Searched 1 | . . 1 . Spaces Dug . | . . . . Terrain Destroyed 10 | . 10 . . Melee . | . . . . Projectile . | . . . . AOE 10 | . 10 . . Terrain Rammed . | . . . . Walls Destroyed . | . . . . Machines Disabled . | . . . . Actions | -11 -10 -10 -10 --------- Run | Yrd Mat Min Sub Total 1707 | 64 176 1151 316 Wait 930 | . 7 896 27 Move 664 | 48 136 227 253 Hop . | . . . . Pick Up 26 | 10 8 2 6 Fast Attach . | . . . . Attach 15 | 6 1 3 5 Detach . | . . . . Swap 4 | . 1 . 3 Drop 2 | . 2 . . Fire 66 | . 21 23 22 Melee . | . . . . Ram . | . . . . Kick . | . . . . Crush . | . . . . Escape Stasis . | . . . . Rewire . | . . . . Trap . | . . . . Miscellaneous . | . . . . Route ------- -11/Scrapyard -10/Materials (discovered 2 exits: *Min x2) -10/Mines -10/Subcaves (discovered 1 exit: Mat) History --------- Turn | Location | Event 4 | -11/Scrapyard | Discovered new exit (range 15) 72 | -11/Scrapyard | Entered Materials 186 | -10/Materials | Identified exit to Mines 304 | -10/Materials | Build established: Mutant 371 | -10/Materials | Entered Mines 1540 | -10/Mines | Found the Drone Emporium 1548 | -10/Mines | Found Prototype Device 1555 | -10/Mines | Identified Thief Drone Bay 1671 | -10/Mines | Discovered new exit (range 5) 1697 | -10/Mines | Entered Subcaves 1790 | -10/Subcaves | Core integrity fell below 50% 1863 | -10/Subcaves | Learned location of Zion (-7) 1863 | -10/Subcaves | Met a Zionite searching for "candidates" 1883 | -10/Subcaves | Identified exit to Materials 2035 | -10/Subcaves | Core integrity fell below 20% 2192 | -10/Subcaves | Destroyed by W5-XZP(R) with Subdweller Laser Last Messages --------------- 02003_ VK-3L4(R) destroyed. 02006_ Acquired 40 matter. 02008_ Acquired Sub. Monowheel. 02030_ Lgt. Assault Rifle destroyed. 02032_ Critical hit (Meltdown: +280). 02042_ EM Pulse Gun destroyed. 02044_ 9Z-AAV(R) destroyed. 02048_ Acquired 21 matter. 02051_ Acquired Sub. Beam Cannon. 02076_ Triggered Shrapnel Trap. 02076_ An expanding cloud of shrapnel blasts out in all directions. 02076_ Mak. Leg destroyed. 02083_ Triggered Shrapnel Trap. 02083_ An expanding cloud of shrapnel blasts out in all directions. 02083_ Ion Engine destroyed. 02087_ Triggered Piercing Trap. 02087_ Spikes shoot up from the floor. 02191_ W5-XZP(R) suffers critical hit (Destroy). Map ----- +----------------------------------------------------+ | ##?# ?? ? ?????????????????????????????????? | | ### ?? ? ?????????????????????????????????? | | #? ??????????????????????????????????? | | # # ???????????????????????????????????? | | # ??# # #???????????????????????????????????? | | # #??## #???????????????????????????????????? | | ## #### ##??????????????????????????????????? | | # ## ##?????????????????????????????????? | | # # ##????????????????????????????????? | | ## ## #######??????????????????????????? | | # #### """#??????????????????????????? | | ## ## ""##??????????????????????????? | | ## ###### "#???????????????????????????? | | ## ##????## "##??????????????????????????? | | ## ##???#### ""#??????????#???????????????? | | ### ##???## ""#????????? #???????????????? | | # % ##??## ##???????? ##??????????????? | | # ##?# ## ##?????#### #####??????????? | | # ### ## #?????? # ##?????????? | | #### ## ## ####??# ??????????? | | ## ## ## ###" #????????????????? | | ### " #????????????????????? | | ### " "##????????????????????? | | ## ##"#"# "#?????????????????????? | | ""## R##?????????????????????? | | ## "### @#??????????????????????? | | ### # # ######?????????????????? | | ?# ### # # #?????????????????? | | ## ##?## #??????????????????? | | # ####???# &####??????????????????? | | ## ##??????# # ## & #####?????????????????? | | ?# ##???????#######&&& #?????????????????? | | ## #??????????????## ###???????????????? | | # #???????????????## #???????????????? | | #????????????????# #???????????????? | | ##???????????????## #???????????????? | | ## ##????????????????# ###???????????????? | | ########?????????????????# ##?????????????????? | | ?????????????????????????######??????????????????? | | ?????????????????????????????????????????????????? | | ?????????????????????????????????????????????????? | | ?????????????????????????????????????????????????? | | ?????????????????????????????????????????????????? | | ?????????????????????????????????????????????????? | | ?????????????????????????????????????????????????? | | ?????????????????????????????????????????????????? | | ?????????????????????????????????????????????????? | | ?????????????????????????????????????????????????? | | ?????????????????????????????????????????????????? | | ?????????????????????????????????????????????????? | +----------------------------------------------------+ Best States ------------- Heat Dissipation 25 Energy Generation 10 Energy Capacity 250 Matter Stores 300 Matter Capacity 300 Sight Range 21 Terrain Scan Density 10 Evasion (%) 55 Recoil Reduction 2 Item Schematics ----------------- None Robot Schematics ------------------ None Fabricated ------------ Nothing Repaired ---------- Nothing Alien Tech Used ----------------- None Achievements -------------- None Challenges ------------ None Game ------ Seed AbsorptionLightpackMultirail Manual? 0 Play Time 00:12:10 Cumulative 39.2 hours Start 2025.07.22 @ 14:44:31 End 2025.07.22 @ 14:55:53 Sessions 1 Manual Loads 0 Difficulty Rogue Special Mode None Game No. 22 Rogue 18 Adventurer 4 Explorer 0 Win Type - Total 0 Types 0/0/0/0/0/0/0/0/0/0 Lore% 24 Gallery% 32 Achievement% 28 Wizard Run 0 Options --------- Layout 1 ASCII 0 Keyboard 0 Movement Numpad Keybinds 1 Fullscreen 1 Font 24/Smallcaps Map View 50x35 Zoom Use 0% Tactical HUD 1 Map Filters NONE Filters NONE Steam 1 RUN: 8703c829-b773-452b-af22-6a0c1401cab1